lending/lending_fUSD_20251116
["ID","MTS","AMOUNT","RATE_DAILY","PERIOD"]
[394117521,1763305832221,-526.18,0.00016986,2]
[394117522,1763305832232,-221.41,0.00017055,2]
[394117523,1763305832242,-250.0,0.00017104,2]
[394117524,1763305832252,-385.49558744,0.00017125,2]
[394117525,1763305832262,-166.66,0.00017222,2]
[394117526,1763305832272,-1200.0,0.00017308,2]
[394117527,1763305832281,-2566.28,0.00017309,2]
[394117528,1763305832290,-68.95218988,0.00017506,2]
[394117529,1763305832306,-231.04781012,0.00017506,2]
[394117530,1763305832315,-300.0,0.00017507,2]
[394117531,1763305832324,-1200.0,0.00017508,2]
[394117532,1763305832335,-999.0,0.0001751,3]
[394117534,1763305832345,-522.2985645,0.00017531,2]
[394117536,1763305832355,-166.66,0.00017557,2]
[394117538,1763305832364,-635.15435128,0.00017599,2]
[394117540,1763305832374,-385.49558744,0.00017599,2]
[394117542,1763305832383,-1827.57767695,0.00017631,2]
[394117544,1763305832395,-10428.24287861,0.00017631,2]
[394117546,1763305832404,-550.0,0.00017672,2]
[394117548,1763305832413,-608.37698903,0.00017673,2]
[394117550,1763305832422,-500.47144105,0.00017673,2]
[394117553,1763305832442,-500.0,0.00017673,2]
[394117554,1763305832452,-500.0,0.00017673,2]
[394117555,1763305832461,-500.0,0.00017673,2]
[394117556,1763305832471,-10854.6483396,0.00017673,2]
[394117557,1763305832483,-67570.47338796,0.00017673,2]
[394117558,1763305832495,-1254.41808677,0.00017673,2]
[394117559,1763305832507,-724.37785151,0.00017673,2]
[394117560,1763305832518,-295.88708944,0.00017673,2]
[394117563,1763305838059,-9618.77293329,0.00017599,2]
[394117564,1763305838069,-500.0,0.00017672,2]
[394117565,1763305838079,-598.77021601,0.00017672,2]
[394117566,1763305838094,-500.0,0.00017672,2]
[394117567,1763305838104,-500.0,0.00017672,2]
[394117568,1763305838114,-500.0,0.00017672,2]
[394117570,1763305838124,-500.0,0.00017672,2]
[394117571,1763305838134,-271.02656522,0.00017672,2]
[394117572,1763305838145,-500.0,0.00017672,2]
[394117573,1763305838155,-500.0,0.00017672,2]
[394117574,1763305838165,-500.0,0.00017672,2]
[394117575,1763305838175,-500.0,0.00017672,2]
[394117576,1763305838185,-500.0,0.00017672,2]
[394117577,1763305838194,-219.77905782,0.00017672,2]
[394117578,1763305838204,-500.0,0.00017672,2]
[394117579,1763305838213,-528.59676037,0.00017672,2]
[394117580,1763305838223,-500.0,0.00017672,2]
[394117581,1763305838232,-500.0,0.00017672,2]
[394117582,1763305838242,-500.0,0.00017672,2]
[394117583,1763305838252,-500.0,0.00017672,2]
[394117584,1763305838262,-500.0,0.00017672,2]
[394117585,1763305838271,-500.0,0.00017672,2]
[394117586,1763305838281,-500.0,0.00017672,2]
[394117587,1763305838291,-500.0,0.00017672,2]
[394117588,1763305838301,-500.0,0.00017672,2]
[394117589,1763305838312,-500.0,0.00017672,2]
[394117590,1763305838323,-500.0,0.00017672,2]
[394117591,1763305838332,-500.0,0.00017672,2]
[394117592,1763305838342,-500.0,0.00017672,2]
[394117593,1763305838352,-500.0,0.00017672,2]
[394117594,1763305838361,-679300.19524472,0.00017673,2]
[394117595,1763305838372,-522.29856451,0.00017699,2]
[394117596,1763305838382,-770.797,0.00017699,2]
[394117597,1763305838392,-500.0,0.000177,2]
[394117598,1763305838401,-500.0,0.000177,2]
[394117599,1763305838411,-500.0,0.000177,2]
[394117600,1763305838420,-3678.3429,0.000177,2]
[394117601,1763305838428,-29643.1966,0.000177,2]
[394117602,1763305838436,-2305.1,0.00017763,2]
[394117603,1763305838444,-17221.47130329,0.00017767,2]
[394117604,1763305838453,-240.86912589,0.00017767,2]
[394117605,1763305838461,-500.0,0.00017773,2]
[394117606,1763305838471,-500.0,0.00017773,2]
[394117607,1763305838480,-500.0,0.00017773,2]
[394117608,1763305838490,-494.75873842,0.00017773,2]
[394117609,1763305838501,-576.09,0.00017789,2]
[394117610,1763305838511,-151.0,0.00017789,2]
[394117611,1763305838521,-151.0,0.00017789,2]
[394117612,1763305838531,-151.0,0.00017789,2]
[394117613,1763305838541,-151.0,0.00017789,2]
[394117614,1763305838550,-151.0,0.00017789,2]
[394117615,1763305838560,-151.0,0.00017789,2]
[394117616,1763305838571,-151.0,0.00017789,2]
[394117617,1763305838580,-151.0,0.00017789,2]
[394117618,1763305838590,-151.0,0.00017789,2]
[394117619,1763305838600,-151.0,0.00017789,2]
[394117620,1763305838610,-151.0,0.00017789,2]
[394117621,1763305838619,-151.0,0.00017789,2]
[394117622,1763305838630,-151.0,0.00017789,2]
[394117623,1763305838640,-151.0,0.00017789,2]
[394117624,1763305838650,-151.0,0.00017789,2]
[394117625,1763305838659,-151.0,0.00017789,2]
[394117626,1763305838669,-151.0,0.00017789,2]
[394117627,1763305838679,-151.0,0.00017789,2]
[394117628,1763305838689,-151.0,0.00017789,2]
[394117629,1763305838699,-151.0,0.00017789,2]
[394117630,1763305838708,-151.0,0.00017789,2]
[394117631,1763305838719,-151.0,0.00017789,2]
[394117632,1763305838728,-244.59265817,0.00017789,2]
[394117633,1763305838738,-500.0,0.00017799,2]
[394117634,1763305838748,-500.0,0.00017799,2]
[394117635,1763305838758,-500.0,0.00017799,2]
[394117636,1763305838768,-500.0,0.00017799,2]
[394117637,1763305838778,-500.0,0.00017799,2]
[394117638,1763305838787,-535.88279207,0.00017799,2]
[394117639,1763305838796,-500.0,0.00017799,2]
[394117640,1763305838805,-500.0,0.00017799,2]
[394117641,1763305838814,-500.0,0.00017799,2]
[394117642,1763305838823,-532.64325832,0.00017799,2]
[394117643,1763305838832,-2566.28,0.00017867,2]
[394117644,1763305838841,-500.0,0.00017899,2]
[394117645,1763305838851,-500.0,0.00017899,2]
[394117646,1763305838861,-491.57867457,0.00017899,2]
[394117647,1763305838871,-588.25964794,0.00017899,2]
[394117648,1763305838881,-300.0,0.000179,6]
[394117649,1763305838890,-500.0,0.00017999,2]
[394117650,1763305838900,-321.47676555,0.00017999,2]
[394117651,1763305838910,-500.0,0.00017999,2]
[394117652,1763305838920,-500.0,0.00017999,2]
[394117653,1763305838930,-576.09,0.00018063,2]
[394117654,1763305838939,-300.0,0.00018091,2]
[394117655,1763305838949,-250.0,0.00018209,2]
[394117656,1763305838960,-300.0,0.00018209,2]
[394117657,1763305838969,-623.56562871,0.00018221,2]
[394117658,1763305838979,-576.09,0.00018337,2]
[394117659,1763305838988,-825.86,0.000184,7]
[394117660,1763305838999,-2566.28,0.00018426,2]
[394117661,1763305839008,-185.59,0.00018606,2]
[394117662,1763305839018,-576.09,0.00018611,2]
[394117663,1763305839028,-576.09,0.00018885,2]
[394117664,1763305839038,-2566.28,0.00018984,2]
[394117665,1763305839048,-1680.0,0.00018992,2]
[394117666,1763305839057,-161.40714697,0.00019,2]
[394117667,1763305839067,-215.17865366,0.00019043,2]
[394117668,1763305839076,-198.85,0.00019071,2]
[394117669,1763305839090,-228.0,0.00019111,2]
[394117670,1763305839100,-1437.0,0.00019113,2]
[394117671,1763305839109,-576.13,0.00019159,2]
[394117672,1763305839119,-1000.0,0.00019178,2]
[394117673,1763305839131,-1000.0,0.00019178,2]
[394117674,1763305839140,-151.0,0.00019178,2]
[394117675,1763305839150,-1104.16044283,0.00019218,2]
[394117676,1763305839159,-1000.0,0.0001929,2]
[394117677,1763305839170,-1429.42,0.00019339,2]
[394117678,1763305839180,-1535.97,0.00019339,2]
[394117679,1763305839189,-3366.8,0.00019339,2]
[394117680,1763305839199,-4617.43,0.00019339,2]
[394117681,1763305839208,-2771.56,0.00019339,2]
[394117682,1763305839218,-999.99,0.00019339,2]
[394117683,1763305839227,-499.99,0.00019339,2]
[394117684,1763305839237,-9601.88,0.00019339,2]
[394117685,1763305839247,-8060.3,0.00019339,2]
[394117686,1763305839256,-3788.37,0.00019339,2]
[394117687,1763305839266,-150.99,0.00019339,2]
[394117688,1763305839275,-150.99,0.00019339,2]
[394117689,1763305839284,-1023.97,0.00019339,2]
[394117690,1763305839294,-9999.99,0.00019339,2]
[394117691,1763305839305,-1523.6,0.00019339,2]
[394117692,1763305839315,-1454.31,0.00019339,2]
[394117693,1763305839326,-1169.66,0.00019339,2]
[394117694,1763305839337,-9684.89,0.00019339,2]
[394117695,1763305839347,-14336.39,0.00019339,2]
[394117696,1763305839356,-9999.99,0.00019339,2]
[394117697,1763305839366,-9999.99,0.00019339,2]
[394117698,1763305839376,-590.90994192,0.00019373,2]
[394117699,1763305839385,-500.0,0.00019373,2]
[394117700,1763305839394,-501.13847952,0.00019373,2]
[394117701,1763305839404,-507.47635794,0.00019373,2]
[394117702,1763305839413,-337.06854993,0.00019373,2]
[394117703,1763305839422,-505.48834918,0.00019373,2]
[394117704,1763305839432,-474.82122033,0.00019373,2]
[394117705,1763305839441,-500.84878588,0.00019373,2]
[394117706,1763305839451,-502.4137082,0.00019373,2]
[394117707,1763305839460,-465.67133023,0.00019373,2]
[394117708,1763305839470,-160.26946118,0.00019435,2]
[394117709,1763305839480,-300.0,0.00019461,2]
[394117710,1763305839489,-500.0,0.00019534,2]
[394117711,1763305839500,-2566.28,0.00019542,2]
[394117712,1763305839510,-504.46013456,0.00019573,2]
[394117713,1763305839519,-508.2246355,0.00019573,2]
[394117714,1763305839528,-501.84826476,0.00019573,2]
[394117715,1763305839538,-500.99618926,0.00019573,2]
[394117716,1763305839547,-500.0,0.00019573,2]
[394117717,1763305839557,-500.0,0.00019573,2]
[394117718,1763305839566,-1169.3897257,0.00019626,2]
[394117719,1763305839575,-17221.4713032,0.00019678,2]
[394117720,1763305839585,-156.587,0.00019726,2]
[394117721,1763305839595,-215.28699534,0.00019735,2]
[394117722,1763305839604,-215.28699491,0.00019735,2]
[394117723,1763305839614,-600.0,0.000199,7]
[394117724,1763305839624,-704.0,0.00019977,2]
[394117725,1763305839635,-6488.0,0.00019977,2]
[394117726,1763305839646,-1604.0,0.00019977,2]
[394117727,1763305839659,-163.11625529,0.00020058,2]
[394117728,1763305839669,-2566.28,0.00020101,2]
[394117729,1763305839680,-500.0,0.00020121,2]
[394117730,1763305839691,-250.0,0.00020145,2]
[394117731,1763305839701,-503.07787062,0.00020173,2]
[394117732,1763305839711,-1397.19991917,0.00020193,2]
[394117733,1763305839724,-150.39,0.00020193,2]
[394117734,1763305839742,-150.39,0.00020193,2]
[394117735,1763305839753,-322.6107,0.00020203,2]
[394117736,1763305839764,-151.0,0.00020203,2]
[394117737,1763305839775,-500.0,0.00020203,2]
[394117738,1763305839785,-500.0,0.00020203,2]
[394117739,1763305839796,-500.0,0.00020203,2]
[394117740,1763305839807,-500.0,0.00020203,2]
[394117741,1763305839818,-500.0,0.00020203,2]
[394117742,1763305839828,-621.62538416,0.00020203,2]
[394117743,1763305839838,-151.0,0.00020203,2]
[394117745,1763305839848,-151.0,0.00020203,2]
[394117747,1763305839859,-151.0,0.00020203,2]
[394117749,1763305839869,-250.0,0.00020203,2]
[394117751,1763305839879,-250.0,0.00020203,2]
[394117752,1763305839890,-21013.0,0.00020203,2]
[394117753,1763305839900,-250.0,0.00020203,2]
[394117754,1763305839910,-250.0,0.00020203,2]
[394117755,1763305839920,-21013.0,0.00020203,2]
[394117756,1763305839930,-500.0,0.00020203,2]
[394117757,1763305839940,-250.0,0.00020203,2]
[394117758,1763305839950,-250.0,0.00020203,2]
[394117759,1763305839962,-21013.0,0.00020203,2]
[394117760,1763305839971,-500.0,0.00020203,2]
[394117761,1763305839983,-250.0,0.00020203,2]
[394117762,1763305839993,-250.0,0.00020203,2]
[394117763,1763305840003,-21013.0,0.00020203,2]
[394117764,1763305840014,-250.0,0.00020203,2]
[394117765,1763305840023,-250.0,0.00020203,2]
[394117766,1763305840032,-500.0,0.00020203,2]
[394117767,1763305840042,-21013.0,0.00020203,2]
[394117769,1763305840051,-250.0,0.00020203,2]
[394117770,1763305840061,-250.0,0.00020203,2]
[394117771,1763305840072,-591.23609277,0.00020203,2]
[394117772,1763305840083,-21013.0,0.00020203,2]
[394117773,1763305840096,-250.0,0.00020203,2]
[394117775,1763305840106,-250.0,0.00020203,2]
[394117777,1763305840115,-21013.0,0.00020203,2]
[394117779,1763305840125,-250.0,0.00020203,2]
[394117780,1763305840135,-250.0,0.00020203,2]
[394117782,1763305840145,-21013.0,0.00020203,2]
[394117784,1763305840156,-250.0,0.00020203,2]
[394117786,1763305840166,-250.0,0.00020203,2]
[394117789,1763305840176,-21013.0,0.00020203,2]
[394117791,1763305840186,-314.97225511,0.00020203,2]
[394117793,1763305840196,-250.0,0.00020203,2]
[394117795,1763305840205,-21013.0,0.00020203,2]
[394117797,1763305840215,-250.0,0.00020203,2]
[394117799,1763305840224,-21013.0,0.00020203,2]
[394117801,1763305840234,-574.12855637,0.00020203,2]
[394117804,1763305840243,-220.0,0.00020203,2]
[394117806,1763305840252,-221.12663668,0.00020203,2]
[394117808,1763305840262,-151.0,0.00020203,2]
[394117810,1763305840271,-151.0,0.00020203,2]
[394117812,1763305840280,-250.0,0.00020203,2]
[394117814,1763305840290,-250.0,0.00020203,2]
[394117816,1763305840300,-250.0,0.00020203,2]
[394117819,1763305840309,-250.0,0.00020203,2]
[394117822,1763305840319,-250.0,0.00020203,2]
[394117824,1763305840329,-277.35679052,0.00020203,2]
[394117826,1763305840339,-250.0,0.00020203,2]
[394117828,1763305840347,-250.0,0.00020203,2]
[394117830,1763305840357,-250.0,0.00020203,2]
[394117832,1763305840366,-250.0,0.00020203,2]
[394117834,1763305840375,-250.0,0.00020203,2]
[394117836,1763305840384,-250.0,0.00020203,2]
[394117838,1763305840394,-250.0,0.00020203,2]
[394117840,1763305840403,-250.0,0.00020203,2]
[394117841,1763305840413,-250.0,0.00020203,2]
[394117842,1763305840423,-250.0,0.00020203,2]
[394117843,1763305840432,-250.0,0.00020203,2]
[394117844,1763305840442,-250.0,0.00020203,2]
[394117845,1763305840451,-250.0,0.00020203,2]
[394117846,1763305840461,-250.0,0.00020203,2]
[394117847,1763305840470,-250.0,0.00020203,2]
[394117848,1763305840479,-181.0,0.00020203,2]
[394117849,1763305840489,-250.0,0.00020203,2]
[394117850,1763305840499,-250.0,0.00020203,2]
[394117851,1763305840508,-250.0,0.00020203,2]
[394117852,1763305840517,-250.0,0.00020203,2]
[394117853,1763305840527,-250.0,0.00020203,2]
[394117854,1763305840536,-250.0,0.00020203,2]
[394117855,1763305840546,-250.0,0.00020203,2]
[394117856,1763305840556,-250.0,0.00020203,2]
[394117857,1763305840567,-250.0,0.00020203,2]
[394117858,1763305840576,-250.0,0.00020203,2]
[394117859,1763305840586,-250.0,0.00020203,2]
[394117860,1763305840595,-185.05737826,0.00020273,2]
[394117861,1763305840604,-164.00583255,0.00020273,2]
[394117862,1763305840613,-162.380719,0.00020274,2]
[394117864,1763305840624,-240.86912587,0.00020384,2]
[394117865,1763305840633,-151.40785574,0.00020388,7]
[394117866,1763305840643,-215.39383231,0.00020427,2]
[394117867,1763305840652,-2566.28,0.00020659,2]
[394117868,1763305840662,-595.37131296,0.00020751,2]
[394117869,1763305840671,-168.3888056,0.00020822,2]
[394117870,1763305840680,-150.0,0.00020835,2]
[394117871,1763305840690,-150.0,0.00020835,2]
[394117872,1763305840846,-150.0,0.00020835,2]
[394117873,1763305840857,-150.0,0.00020835,2]
[394117874,1763305840868,-150.0,0.00020835,2]
[394117875,1763305840880,-718.722,0.00020835,2]
[394117876,1763305840891,-1318.0,0.00020835,2]
[394117877,1763305840903,-575.0,0.00020835,2]
[394117878,1763305840925,-3475.978,0.00020835,2]
[394117879,1763305840936,-1599.0,0.00020835,2]
[394117880,1763305840947,-821.0,0.00020835,2]
[394117881,1763305840956,-814.0,0.00020835,2]
[394117882,1763305840965,-1275.0,0.00020835,2]
[394117883,1763305840974,-1190.0,0.00020835,2]
[394117884,1763305840984,-907.0,0.00020835,2]
[394117885,1763305840993,-2351.0,0.00020839,2]
[394117886,1763305841002,-27630.24,0.00020951,2]
[394117887,1763305841012,-9999.99,0.00020951,2]
[394117888,1763305841020,-151.0,0.00021071,2]
[394117889,1763305841030,-151.0,0.00021071,2]
[394117890,1763305841039,-151.0,0.00021071,2]
[394117891,1763305841049,-151.0,0.00021071,2]
[394117892,1763305841058,-151.0,0.00021071,2]
[394117893,1763305841068,-151.0,0.00021071,2]
[394117894,1763305841080,-151.0,0.00021071,2]
[394117895,1763305841095,-161.513378,0.00021132,2]
[394117896,1763305841105,-151.0,0.00021132,2]
[394117897,1763305841114,-483.170037,0.00021132,2]
[394117898,1763305841123,-151.0,0.00021132,2]
[394117899,1763305841134,-483.170037,0.00021132,2]
[394117900,1763305841144,-151.0,0.00021132,2]
[394117901,1763305841154,-483.170037,0.00021132,2]
[394117902,1763305841163,-151.0,0.00021132,2]
[394117903,1763305841173,-483.170037,0.00021132,2]
[394117904,1763305841183,-151.972917,0.00021132,2]
[394117905,1763305841192,-151.0,0.00021132,2]
[394117906,1763305841202,-151.0,0.00021132,2]
[394117907,1763305841211,-151.0,0.00021132,2]
[394117908,1763305841222,-151.0,0.00021132,2]
[394117909,1763305841231,-1081.086785,0.00021132,2]
[394117910,1763305841241,-1081.086785,0.00021132,2]
[394117911,1763305841250,-1081.086785,0.00021132,2]
[394117912,1763305841260,-1081.086785,0.00021132,2]
[394117913,1763305841270,-151.0,0.00021132,2]
[394117914,1763305841279,-209.382617,0.00021132,2]
[394117915,1763305841289,-151.0,0.00021132,2]
[394117916,1763305841299,-151.0,0.00021132,2]
[394117917,1763305841308,-151.0,0.00021132,2]
[394117918,1763305841318,-151.0,0.00021132,2]
[394117919,1763305841327,-151.0,0.00021132,2]
[394117920,1763305841337,-151.0,0.00021132,2]
[394117921,1763305841346,-151.0,0.00021132,2]
[394117922,1763305841355,-2566.28,0.00021217,2]
[394117923,1763305841365,-617.40005154,0.00021299,2]
[394117924,1763305841375,-174.61919141,0.0002137,2]
[394117925,1763305841384,-1000.0,0.000214,2]
[394117926,1763305841394,-334.5472959,0.00021572,2]
[394117927,1763305841403,-151.0,0.00021572,2]
[394117928,1763305841413,-287.61899177,0.00021572,2]
[394117929,1763305841423,-150.39,0.00021578,2]
[394117930,1763305841432,-17221.4713032,0.00021588,2]
[394117931,1763305841441,-2000.0,0.000216,2]
[394117932,1763305841451,-640.24385345,0.00021847,2]
[394117933,1763305841462,-500.0,0.00021918,5]
[394117934,1763305841471,-181.08010149,0.00021918,2]
[394117935,1763305841480,-185.59,0.00022027,2]
[394117936,1763305841490,-553.0,0.00022215,2]
[394117937,1763305841499,-479.06402154,0.00022234,2]
[394117938,1763305841509,-553.0,0.00022235,2]
[394117939,1763305841519,-553.0,0.0002227,2]
[394117940,1763305841529,-553.0,0.0002229,2]
[394117941,1763305841539,-256.50445864,0.00022315,2]
[394117942,1763305841548,-553.0,0.00022355,2]
[394117943,1763305841558,-663.93287602,0.00022395,2]
[394117944,1763305841569,-666.0,0.00022399,2]
[394117945,1763305841580,-553.0,0.00022417,2]
[394117946,1763305841591,-500.0,0.00022466,5]
[394117947,1763305841602,-187.78006525,0.00022466,2]
[394117948,1763305841612,-510.29,0.00022584,7]
[394117949,1763305841622,-300.0,0.00022699,2]
[394117950,1763305841633,-666.0,0.00022699,2]
[394117951,1763305841643,-666.0,0.00022699,2]
[394117952,1763305841655,-151.0,0.000227,2]
[394117953,1763305841664,-151.0,0.000227,2]
[394117954,1763305841673,-151.0,0.000227,2]
[394117955,1763305841683,-151.0,0.000227,2]
[394117956,1763305841692,-3999.996,0.000227,2]
[394117957,1763305841702,-3999.996,0.000227,2]
[394117958,1763305841711,-3999.996,0.000227,2]
[394117959,1763305841721,-3999.996,0.000227,2]
[394117960,1763305841731,-238.041183,0.000227,2]
[394117961,1763305841740,-238.041183,0.000227,2]
[394117962,1763305841750,-214.412412,0.000227,2]
[394117963,1763305841760,-238.041183,0.000227,2]
[394117964,1763305841769,-238.041183,0.000227,2]
[394117965,1763305841779,-151.0,0.000227,2]
[394117966,1763305841788,-151.0,0.000227,2]
[394117967,1763305841797,-553.0,0.00022798,2]
[394117968,1763305841807,-204.325718,0.000228,2]
[394117969,1763305841816,-3285.0,0.00022867,2]
[394117970,1763305841825,-198.85,0.00022892,2]
[394117971,1763305841835,-553.0,0.00022894,2]
[394117972,1763305841844,-309.52096424,0.00022899,2]
[394117973,1763305841854,-151.0,0.000229,2]
[394117974,1763305841864,-151.0,0.000229,2]
[394117975,1763305841874,-151.0,0.000229,2]
[394117976,1763305841883,-180.69634,0.000229,2]
[394117977,1763305841893,-151.0,0.000229,2]
[394117978,1763305841903,-151.0,0.000229,2]
[394117979,1763305841912,-151.0,0.000229,2]
[394117980,1763305841922,-151.0,0.000229,2]
[394117981,1763305841932,-261.369398,0.000229,2]
[394117982,1763305841942,-154.617835,0.000229,2]
[394117983,1763305841951,-151.0,0.000229,2]
[394117984,1763305841961,-151.0,0.000229,2]
[394117985,1763305841971,-151.0,0.000229,2]
[394117986,1763305841980,-483.170037,0.000229,2]
[394117987,1763305841990,-151.0,0.000229,2]
[394117988,1763305842000,-483.170037,0.000229,2]
[394117989,1763305842009,-151.0,0.000229,2]
[394117990,1763305842019,-483.170037,0.000229,2]
[394117991,1763305842029,-151.0,0.000229,2]
[394117992,1763305842038,-483.170037,0.000229,2]
[394117993,1763305842048,-151.0,0.000229,2]
[394117994,1763305842057,-151.0,0.000229,2]
[394117995,1763305842066,-151.0,0.000229,2]
[394117996,1763305842076,-1081.086785,0.000229,2]
[394117997,1763305842089,-1081.086785,0.000229,2]
[394117998,1763305842098,-1081.086785,0.000229,2]
[394117999,1763305842108,-1081.086785,0.000229,2]
[394118000,1763305842118,-151.0,0.000229,2]
[394118001,1763305842128,-151.0,0.000229,2]
[394118002,1763305842139,-151.0,0.000229,2]
[394118003,1763305842149,-151.0,0.000229,2]
[394118004,1763305842159,-151.0,0.000229,2]
[394118005,1763305842169,-151.0,0.000229,2]
[394118006,1763305842179,-151.0,0.000229,2]
[394118007,1763305842189,-151.0,0.000229,2]
[394118008,1763305842198,-151.0,0.000229,2]
[394118009,1763305842208,-164.04266,0.000229,2]
[394118010,1763305842217,-151.0,0.000229,2]
[394118011,1763305842226,-151.0,0.000229,2]
[394118012,1763305842236,-151.0,0.000229,2]
[394118013,1763305842246,-346.92554585,0.00022941,2]
[394118014,1763305842255,-151.0,0.00022941,2]
[394118015,1763305842265,-298.26089446,0.00022941,2]
[394118016,1763305842275,-574.12855637,0.00022943,2]
[394118017,1763305842284,-704.0,0.00022977,2]
[394118018,1763305842294,-6488.0,0.00022977,2]
[394118019,1763305842303,-1604.0,0.00022977,2]
[394118020,1763305842313,-553.0,0.00022996,2]
[394118021,1763305842322,-553.0,0.00022998,2]
[394118022,1763305842332,-151.0,0.00023,2]
[394118023,1763305842342,-151.0,0.00023,2]
[394118024,1763305842351,-151.0,0.00023,2]
[394118025,1763305842361,-162.886951,0.00023,2]
[394118026,1763305842371,-151.0,0.00023,2]
[394118027,1763305842381,-151.0,0.00023,2]
[394118028,1763305842390,-151.0,0.00023,2]
[394118029,1763305842399,-151.0,0.00023,2]
[394118030,1763305842409,-151.0,0.00023,2]
[394118031,1763305842418,-178.231537,0.00023,2]
[394118032,1763305842428,-178.231537,0.00023,2]
[394118033,1763305842438,-178.231537,0.00023,2]
[394118034,1763305842448,-169.780707,0.00023,2]
[394118035,1763305842458,-169.780707,0.00023,2]
[394118036,1763305842468,-178.231537,0.00023,2]
[394118037,1763305842477,-169.780707,0.00023,2]
[394118038,1763305842486,-151.0,0.00023,2]
[394118039,1763305842497,-169.780707,0.00023,2]
[394118040,1763305842506,-151.0,0.00023,2]
[394118041,1763305842515,-240.86912587,0.00023001,2]
[394118042,1763305842525,-500.0,0.00023014,5]
[394118043,1763305842534,-188.42617868,0.00023014,2]
[394118044,1763305842544,-553.0,0.00023027,2]
[394118045,1763305842553,-553.0,0.00023055,2]
[394118046,1763305842563,-553.0,0.00023083,2]
[394118047,1763305842572,-553.0,0.00023133,2]
[394118048,1763305842582,-150.0,0.00023145,2]
[394118049,1763305842593,-553.0,0.00023155,2]
[394118050,1763305842603,-166.66,0.00023156,2]
[394118051,1763305842614,-151.0,0.000232,2]
[394118052,1763305842625,-151.0,0.000232,2]
[394118053,1763305842636,-195.221462,0.000232,2]
[394118054,1763305842646,-151.0,0.000232,2]
[394118055,1763305842657,-151.0,0.000232,2]
[394118056,1763305842668,-151.0,0.000232,2]
[394118057,1763305842678,-151.0,0.000232,2]
[394118058,1763305842688,-219.036736,0.000232,2]
[394118059,1763305842698,-151.0,0.000232,2]
[394118060,1763305842708,-151.0,0.000232,2]
[394118061,1763305842719,-191.883751,0.000232,2]
[394118062,1763305842729,-191.883751,0.000232,2]
[394118063,1763305842739,-191.883751,0.000232,2]
[394118064,1763305842749,-191.883751,0.000232,2]
[394118065,1763305842759,-151.0,0.000232,2]
[394118066,1763305842769,-197.643736,0.000232,2]
[394118067,1763305842779,-197.643736,0.000232,2]
[394118068,1763305842789,-197.643736,0.000232,2]
[394118069,1763305842798,-197.643736,0.000232,2]
[394118070,1763305842808,-232.0,0.00023216,2]
[394118071,1763305842818,-1169.38972564,0.00023242,2]
[394118073,1763305842827,-500.0,0.00023256,2]
[394118074,1763305842837,-500.0,0.00023256,2]
[394118075,1763305842847,-500.0,0.00023256,2]
[394118076,1763305842856,-164.572823,0.000233,7]